[Event "Titled Tuesday Blitz July 18 Early 2023"]
[White "Mogirzan, Matei-Valeriu"]
[Black "Krzyzanowski, Marcin"]
[WhiteFideId "1257455"]
[BlackFideId "1132199"]
[WhiteElo "2570"]
[BlackElo "2778"]
[Result "1-0"]
[Round "6"]
[TimeControl "180+2"]
[Date "2023.07.18"]
[WhiteClock "0:00:10"]
[BlackClock "0:00:02"]
[Board "30"]

1. e4 {[%clk 0:03:00]}  c5 {[%clk 0:02:57]} 2. Nf3 {[%clk 0:03:00]}  Nc6 {[%clk 0:02:54]} 3. d4 {[%clk 0:02:57]}  cxd4 {[%clk 0:02:55]} 4. c3 {[%clk 0:02:54]}  d3 {[%clk 0:02:53]} 5. Bxd3 {[%clk 0:02:54]}  g6 {[%clk 0:02:52]} 6. h4 {[%clk 0:02:53]}  h6 {[%clk 0:02:47]} 7. Nbd2 {[%clk 0:02:51]}  Bg7 {[%clk 0:02:44]} 8. Nf1 {[%clk 0:02:46]}  d6 {[%clk 0:02:39]} 9. Ne3 {[%clk 0:02:44]}  Nf6 {[%clk 0:02:35]} 10. Nd4 {[%clk 0:02:29]}  h5 {[%clk 0:02:16]} 11. f3 {[%clk 0:02:21]}  e5 {[%clk 0:02:02]} 12. Ndc2 {[%clk 0:02:07]}  d5 {[%clk 0:01:45]} 13. exd5 {[%clk 0:02:01]}  Nxd5 {[%clk 0:01:45]} 14. Be4 {[%clk 0:01:56]}  Be6 {[%clk 0:01:36]} 15. Bxd5 {[%clk 0:01:50]}  Qe7 {[%clk 0:01:20]} 16. Bxe6 {[%clk 0:01:47]}  Qxe6 {[%clk 0:01:13]} 17. Nd5 {[%clk 0:01:35]}  O-O-O {[%clk 0:01:08]} 18. c4 {[%clk 0:01:26]}  e4 {[%clk 0:00:58]} 19. O-O {[%clk 0:01:18]}  f5 {[%clk 0:00:36]} 20. Bg5 {[%clk 0:00:55]}  Rd7 {[%clk 0:00:36]} 21. Qe2 {[%clk 0:00:54]}  Ne5 {[%clk 0:00:26]} 22. fxe4 {[%clk 0:00:47]}  Ng4 {[%clk 0:00:26]} 23. Rae1 {[%clk 0:00:40]}  Re8 {[%clk 0:00:17]} 24. Qf3 {[%clk 0:00:33]}  Qd6 {[%clk 0:00:17]} 25. Bf4 {[%clk 0:00:27]}  Qc5+ {[%clk 0:00:16]} 26. Kh1 {[%clk 0:00:25]}  Qxc4 {[%clk 0:00:07]} 27. Nce3 {[%clk 0:00:20]}  Qxe4 {[%clk 0:00:07]} 28. Rc1+ {[%clk 0:00:20]}  Kd8 {[%clk 0:00:06]} 29. Nxg4 {[%clk 0:00:18]}  Rxd5 {[%clk 0:00:04]} 30. Bg5+ {[%clk 0:00:16]}  Kd7 {[%clk 0:00:04]} 31. Qxe4 {[%clk 0:00:15]}  Rxe4 {[%clk 0:00:03]} 32. Nf6+ {[%clk 0:00:14]}  Bxf6 {[%clk 0:00:03]} 33. Bxf6 {[%clk 0:00:15]}  Re2 {[%clk 0:00:03]} 34. Rfd1 {[%clk 0:00:14]}  Red2 {[%clk 0:00:03]} 35. Rxd2 {[%clk 0:00:13]}  Rxd2 {[%clk 0:00:04]} 36. Bc3 {[%clk 0:00:12]}  Re2 {[%clk 0:00:04]} 37. Rd1+ {[%clk 0:00:12]}  Kc6 {[%clk 0:00:03]} 38. Re1 {[%clk 0:00:11]}  Rxe1+ {[%clk 0:00:02]} 39. Bxe1 {[%clk 0:00:12]}  Kd5 {[%clk 0:00:02]} 40. Kg1 {[%clk 0:00:10]}  Ke4 {[%clk 0:00:03]} 41. Kf2 {[%clk 0:00:10]}  Kd3 {[%clk 0:00:02]} 42. Bc3 {[%clk 0:00:10]}  b5 {[%clk 0:00:02]} 43. Kf3 {[%clk 0:00:10]}  Kc2 {[%clk 0:00:01]} 44. a3 {[%clk 0:00:08]}  a5 {[%clk 0:00:02]} 45. Bxa5 {[%clk 0:00:08]}  Kxb2 {[%clk 0:00:02]} 46. Bb4 {[%clk 0:00:08]}  Kb3 {[%clk 0:00:03]} 47. Kf4 {[%clk 0:00:09]}  Kc4 {[%clk 0:00:03]} 48. Kg5 {[%clk 0:00:09]}  Kd5 {[%clk 0:00:04]} 49. Kxg6 {[%clk 0:00:10]}  Ke4 {[%clk 0:00:04]} 50. Kxh5 {[%clk 0:00:10]}  Kf4 {[%clk 0:00:05]} 51. Bd6+ {[%clk 0:00:09]}  Ke4 {[%clk 0:00:04]} 52. Kg5 {[%clk 0:00:10]}  Kd5 {[%clk 0:00:03]} 53. Bb4 {[%clk 0:00:09]}  Ke4 {[%clk 0:00:03]} 54. g3 {[%clk 0:00:09]}  f4 {[%clk 0:00:03]} 55. gxf4 {[%clk 0:00:10]}  Kf3 {[%clk 0:00:02]} 56. f5 {[%clk 0:00:10]} 1-0


[Site "https://www.chess.com"]

[Event "Titled Tuesday Blitz July 18 Early 2023"]
[White "Bendayan Claros, Aaron"]
[Black "Mahdavi, Reza"]
[WhiteFideId "3803392"]
[BlackFideId "12595926"]
[WhiteElo "2451"]
[BlackElo "2776"]
[Result "1-0"]
[Round "6"]
[TimeControl "180+2"]
[Date "2023.07.18"]
[WhiteClock "0:00:05"]
[BlackClock "0:00:06"]
[Board "31"]

1. d4 {[%clk 0:02:57]}  Nf6 {[%clk 0:03:00]} 2. Nf3 {[%clk 0:02:57]}  g6 {[%clk 0:02:57]} 3. Nbd2 {[%clk 0:02:56]}  d5 {[%clk 0:02:55]} 4. e3 {[%clk 0:02:57]}  Bg7 {[%clk 0:02:56]} 5. b4 {[%clk 0:02:55]}  O-O {[%clk 0:02:54]} 6. c4 {[%clk 0:02:55]}  c6 {[%clk 0:02:52]} 7. Bb2 {[%clk 0:02:53]}  Nbd7 {[%clk 0:02:53]} 8. Be2 {[%clk 0:02:49]}  a5 {[%clk 0:02:52]} 9. b5 {[%clk 0:02:49]}  c5 {[%clk 0:02:53]} 10. O-O {[%clk 0:02:39]}  cxd4 {[%clk 0:02:43]} 11. Bxd4 {[%clk 0:02:40]}  b6 {[%clk 0:02:38]} 12. cxd5 {[%clk 0:02:40]}  Nxd5 {[%clk 0:02:37]} 13. Bxg7 {[%clk 0:02:41]}  Kxg7 {[%clk 0:02:38]} 14. Qb3 {[%clk 0:02:33]}  Bb7 {[%clk 0:02:36]} 15. Nd4 {[%clk 0:02:33]}  N5f6 {[%clk 0:02:29]} 16. Bf3 {[%clk 0:02:31]}  Nc5 {[%clk 0:02:27]} 17. Qb2 {[%clk 0:02:25]}  Bxf3 {[%clk 0:02:23]} 18. N2xf3 {[%clk 0:02:26]}  Qd5 {[%clk 0:02:20]} 19. Nc6 {[%clk 0:02:19]}  Rfe8 {[%clk 0:02:20]} 20. Rfd1 {[%clk 0:02:17]}  Qf5 {[%clk 0:02:17]} 21. h3 {[%clk 0:02:06]}  a4 {[%clk 0:02:14]} 22. Rd4 {[%clk 0:01:33]}  a3 {[%clk 0:02:12]} 23. Qe2 {[%clk 0:01:33]}  e5 {[%clk 0:02:11]} 24. Rd2 {[%clk 0:01:20]}  h5 {[%clk 0:01:58]} 25. Rc1 {[%clk 0:01:06]}  Nfe4 {[%clk 0:01:44]} 26. Rd5 {[%clk 0:00:55]}  f6 {[%clk 0:01:37]} 27. Nd2 {[%clk 0:00:40]}  Qe6 {[%clk 0:01:23]} 28. Nb4 {[%clk 0:00:39]}  Ra4 {[%clk 0:01:22]} 29. Nxe4 {[%clk 0:00:39]}  Rxb4 {[%clk 0:01:21]} 30. Rd6 {[%clk 0:00:32]}  Qe7 {[%clk 0:01:17]} 31. Nxf6 {[%clk 0:00:29]}  Rf8 {[%clk 0:01:15]} 32. Nxh5+ {[%clk 0:00:25]}  gxh5 {[%clk 0:01:12]} 33. Rxb6 {[%clk 0:00:25]}  Ne6 {[%clk 0:00:47]} 34. Qxh5 {[%clk 0:00:21]}  Qf6 {[%clk 0:00:29]} 35. Rb7+ {[%clk 0:00:17]}  Rf7 {[%clk 0:00:27]} 36. Rxf7+ {[%clk 0:00:17]}  Qxf7 {[%clk 0:00:28]} 37. Qxe5+ {[%clk 0:00:17]}  Qf6 {[%clk 0:00:28]} 38. Qg3+ {[%clk 0:00:13]}  Kh7 {[%clk 0:00:24]} 39. Rc8 {[%clk 0:00:11]}  Ng7 {[%clk 0:00:22]} 40. Rc6 {[%clk 0:00:10]}  Qf5 {[%clk 0:00:18]} 41. Qd6 {[%clk 0:00:08]}  Qg5 {[%clk 0:00:14]} 42. Qxb4 {[%clk 0:00:07]}  Qf5 {[%clk 0:00:11]} 43. Qxa3 {[%clk 0:00:05]}  Qxb5 {[%clk 0:00:10]} 44. Rc1 {[%clk 0:00:04]}  Qe2 {[%clk 0:00:10]} 45. Qc3 {[%clk 0:00:03]}  Qa6 {[%clk 0:00:08]} 46. a3 {[%clk 0:00:03]}  Ne6 {[%clk 0:00:08]} 47. Qc2+ {[%clk 0:00:03]}  Kg7 {[%clk 0:00:08]} 48. Qc4 {[%clk 0:00:03]}  Qxa3 {[%clk 0:00:07]} 49. Qxe6 {[%clk 0:00:03]}  Qxc1+ {[%clk 0:00:07]} 50. Kh2 {[%clk 0:00:03]}  Qc7+ {[%clk 0:00:08]} 51. g3 {[%clk 0:00:03]}  Qc2 {[%clk 0:00:09]} 52. Qg4+ {[%clk 0:00:03]}  Kh8 {[%clk 0:00:08]} 53. Qf3 {[%clk 0:00:04]}  Qd2 {[%clk 0:00:08]} 54. Kg2 {[%clk 0:00:05]}  Qc2 {[%clk 0:00:09]} 55. h4 {[%clk 0:00:05]}  Qd2 {[%clk 0:00:09]} 56. g4 {[%clk 0:00:06]}  Qb4 {[%clk 0:00:09]} 57. h5 {[%clk 0:00:06]}  Qe7 {[%clk 0:00:08]} 58. Qf5 {[%clk 0:00:06]}  Qh4 {[%clk 0:00:07]} 59. Qe5+ {[%clk 0:00:06]}  Kh7 {[%clk 0:00:07]} 60. Qg3 {[%clk 0:00:06]}  Qe7 {[%clk 0:00:07]} 61. Kh3 {[%clk 0:00:07]}  Kh8 {[%clk 0:00:07]} 62. Qf4 {[%clk 0:00:07]}  Qb7 {[%clk 0:00:07]} 63. Kh2 {[%clk 0:00:06]}  Qe7 {[%clk 0:00:07]} 64. Kg3 {[%clk 0:00:05]}  Qb7 {[%clk 0:00:07]} 65. h6 {[%clk 0:00:05]}  Qh1 {[%clk 0:00:06]} 66. Qf6+ {[%clk 0:00:05]} 1-0


[Site "https://www.chess.com"]

[Event "Titled Tuesday Blitz July 18 Early 2023"]
[White "Glavina, Pablo"]
[Black "Shimanov, Aleksandr"]
[WhiteFideId "100234"]
[BlackFideId "4198603"]
[WhiteElo "2398"]
[BlackElo "2993"]
[Result "0-1"]
[Round "6"]
[TimeControl "180+2"]
[Date "2023.07.18"]
[WhiteClock "0:00:08"]
[BlackClock "0:00:10"]
[Board "33"]

1. c4 {[%clk 0:02:57]}  e5 {[%clk 0:02:50]} 2. Nc3 {[%clk 0:02:57]}  d6 {[%clk 0:02:47]} 3. Nf3 {[%clk 0:02:56]}  f5 {[%clk 0:02:47]} 4. g3 {[%clk 0:02:54]}  Be7 {[%clk 0:02:45]} 5. Bg2 {[%clk 0:02:53]}  Nf6 {[%clk 0:02:45]} 6. O-O {[%clk 0:02:53]}  O-O {[%clk 0:02:45]} 7. d4 {[%clk 0:02:45]}  e4 {[%clk 0:02:42]} 8. Nd2 {[%clk 0:02:43]}  c6 {[%clk 0:02:41]} 9. d5 {[%clk 0:02:31]}  Na6 {[%clk 0:02:35]} 10. f3 {[%clk 0:02:29]}  exf3 {[%clk 0:02:09]} 11. Nxf3 {[%clk 0:02:30]}  cxd5 {[%clk 0:01:47]} 12. cxd5 {[%clk 0:02:28]}  Qb6+ {[%clk 0:01:42]} 13. Kh1 {[%clk 0:02:09]}  Ng4 {[%clk 0:01:41]} 14. Nd4 {[%clk 0:02:06]}  Bf6 {[%clk 0:01:38]} 15. e3 {[%clk 0:02:06]}  g6 {[%clk 0:01:31]} 16. h3 {[%clk 0:02:04]}  Ne5 {[%clk 0:01:31]} 17. Ne6 {[%clk 0:01:52]}  Bxe6 {[%clk 0:01:24]} 18. dxe6 {[%clk 0:01:53]}  Nc7 {[%clk 0:01:24]} 19. e4 {[%clk 0:01:50]}  fxe4 {[%clk 0:01:19]} 20. Nxe4 {[%clk 0:01:49]}  Be7 {[%clk 0:01:20]} 21. Bf4 {[%clk 0:01:41]}  Rad8 {[%clk 0:01:10]} 22. Rc1 {[%clk 0:01:14]}  Kh8 {[%clk 0:01:00]} 23. Ng5 {[%clk 0:01:10]}  Kg7 {[%clk 0:00:48]} 24. Nf7 {[%clk 0:00:48]}  Nxf7 {[%clk 0:00:43]} 25. exf7 {[%clk 0:00:48]}  Bf6 {[%clk 0:00:31]} 26. Qd2 {[%clk 0:00:34]}  Rxf7 {[%clk 0:00:31]} 27. Bh6+ {[%clk 0:00:34]}  Kg8 {[%clk 0:00:31]} 28. Rf2 {[%clk 0:00:28]}  d5 {[%clk 0:00:27]} 29. Rcf1 {[%clk 0:00:28]}  Rdd7 {[%clk 0:00:25]} 30. h4 {[%clk 0:00:24]}  Bg7 {[%clk 0:00:19]} 31. Be3 {[%clk 0:00:21]}  d4 {[%clk 0:00:17]} 32. Bf4 {[%clk 0:00:18]}  Ne6 {[%clk 0:00:17]} 33. Bh3 {[%clk 0:00:18]}  Rde7 {[%clk 0:00:15]} 34. h5 {[%clk 0:00:10]}  gxh5 {[%clk 0:00:14]} 35. Qd1 {[%clk 0:00:05]}  Qc5 {[%clk 0:00:13]} 36. Qd3 {[%clk 0:00:02]}  Qd5+ {[%clk 0:00:11]} 37. Bg2 {[%clk 0:00:02]}  Qd7 {[%clk 0:00:09]} 38. Be4 {[%clk 0:00:02]}  Nf8 {[%clk 0:00:08]} 39. Bg5 {[%clk 0:00:02]}  Rxf2 {[%clk 0:00:08]} 40. Bxe7 {[%clk 0:00:03]}  Rxf1+ {[%clk 0:00:07]} 41. Qxf1 {[%clk 0:00:03]}  Qxe7 {[%clk 0:00:08]} 42. Bd5+ {[%clk 0:00:04]}  Kh8 {[%clk 0:00:08]} 43. Qf5 {[%clk 0:00:05]}  h4 {[%clk 0:00:08]} 44. g4 {[%clk 0:00:04]}  b6 {[%clk 0:00:05]} 45. Be4 {[%clk 0:00:04]}  Qd7 {[%clk 0:00:03]} 46. Qf3 {[%clk 0:00:04]}  Qd6 {[%clk 0:00:04]} 47. Kg2 {[%clk 0:00:04]}  Qg3+ {[%clk 0:00:04]} 48. Qxg3 {[%clk 0:00:04]}  hxg3 {[%clk 0:00:05]} 49. Kxg3 {[%clk 0:00:05]}  Be5+ {[%clk 0:00:05]} 50. Kf3 {[%clk 0:00:05]}  Ne6 {[%clk 0:00:06]} 51. Bb1 {[%clk 0:00:04]}  Ng5+ {[%clk 0:00:06]} 52. Ke2 {[%clk 0:00:05]}  Kg7 {[%clk 0:00:07]} 53. Kd3 {[%clk 0:00:05]}  Kf6 {[%clk 0:00:07]} 54. Kc4 {[%clk 0:00:05]}  h6 {[%clk 0:00:07]} 55. Kd5 {[%clk 0:00:06]}  Nf3 {[%clk 0:00:06]} 56. Kc6 {[%clk 0:00:06]}  Ne1 {[%clk 0:00:07]} 57. Kb7 {[%clk 0:00:05]}  d3 {[%clk 0:00:07]} 58. Bxd3 {[%clk 0:00:05]}  Nxd3 {[%clk 0:00:08]} 59. Kxa7 {[%clk 0:00:05]}  Bxb2 {[%clk 0:00:08]} 60. Kxb6 {[%clk 0:00:05]}  Kg5 {[%clk 0:00:09]} 61. a4 {[%clk 0:00:06]}  Kxg4 {[%clk 0:00:09]} 62. a5 {[%clk 0:00:07]}  Bd4+ {[%clk 0:00:09]} 63. Kb5 {[%clk 0:00:07]}  Nf4 {[%clk 0:00:09]} 64. Kc4 {[%clk 0:00:08]}  Bg1 {[%clk 0:00:09]} 65. a6 {[%clk 0:00:09]}  h5 {[%clk 0:00:10]} 66. a7 {[%clk 0:00:08]}  Bxa7 {[%clk 0:00:10]} 0-1


[Site "https://www.chess.com"]

[Event "Titled Tuesday Blitz July 18 Early 2023"]
[White "Movahed, Sina"]
[Black "Fiorito, Joaquin"]
[WhiteFideId "42520835"]
[BlackFideId "180173"]
[WhiteElo "2989"]
[BlackElo "2724"]
[Result "1-0"]
[Round "6"]
[TimeControl "180+2"]
[Date "2023.07.18"]
[WhiteClock "0:02:24"]
[BlackClock "0:01:00"]
[Board "34"]

1. e4 {[%clk 0:03:00]}  c5 {[%clk 0:02:57]} 2. Nf3 {[%clk 0:03:00]}  d6 {[%clk 0:02:58]} 3. d4 {[%clk 0:03:01]}  cxd4 {[%clk 0:02:59]} 4. Nxd4 {[%clk 0:03:01]}  Nf6 {[%clk 0:02:59]} 5. Nc3 {[%clk 0:03:02]}  a6 {[%clk 0:03:00]} 6. Bg5 {[%clk 0:03:02]}  Nbd7 {[%clk 0:03:00]} 7. Bc4 {[%clk 0:03:01]}  e6 {[%clk 0:02:57]} 8. Qe2 {[%clk 0:02:55]}  Qb6 {[%clk 0:02:57]} 9. O-O-O {[%clk 0:02:54]}  Qc7 {[%clk 0:02:56]} 10. Bxf6 {[%clk 0:02:48]}  Nxf6 {[%clk 0:02:53]} 11. f4 {[%clk 0:02:49]}  Be7 {[%clk 0:02:36]} 12. g4 {[%clk 0:02:38]}  b5 {[%clk 0:02:28]} 13. Bb3 {[%clk 0:02:38]}  Bb7 {[%clk 0:02:28]} 14. g5 {[%clk 0:02:35]}  Nd7 {[%clk 0:02:27]} 15. f5 {[%clk 0:02:32]}  Bxg5+ {[%clk 0:02:00]} 16. Kb1 {[%clk 0:02:32]}  e5 {[%clk 0:01:42]} 17. Bxf7+ {[%clk 0:02:31]}  Kxf7 {[%clk 0:01:35]} 18. Ne6 {[%clk 0:02:32]}  Qb6 {[%clk 0:01:03]} 19. Qh5+ {[%clk 0:02:27]}  Kg8 {[%clk 0:01:00]} 20. Qxg5 {[%clk 0:02:24]} 1-0


[Site "https://www.chess.com"]

[Event "Titled Tuesday Blitz July 18 Early 2023"]
[White "Durarbayli, Vasif"]
[Black "Stoyanov, Tsvetan"]
[WhiteFideId "13402935"]
[BlackFideId "2917173"]
[WhiteElo "2921"]
[BlackElo "2723"]
[Result "1-0"]
[Round "6"]
[TimeControl "180+2"]
[Date "2023.07.18"]
[WhiteClock "0:00:24"]
[BlackClock "0:00:01"]
[Board "35"]

1. e4 {[%clk 0:03:00]}  c5 {[%clk 0:02:59]} 2. Nf3 {[%clk 0:03:00]}  d6 {[%clk 0:03:00]} 3. d4 {[%clk 0:03:00]}  cxd4 {[%clk 0:03:01]} 4. Nxd4 {[%clk 0:03:01]}  Nf6 {[%clk 0:03:01]} 5. Nc3 {[%clk 0:03:02]}  a6 {[%clk 0:03:02]} 6. Be2 {[%clk 0:03:00]}  e5 {[%clk 0:03:02]} 7. Nb3 {[%clk 0:03:01]}  Be6 {[%clk 0:03:02]} 8. f4 {[%clk 0:02:58]}  exf4 {[%clk 0:02:42]} 9. Bxf4 {[%clk 0:02:58]}  Nc6 {[%clk 0:02:41]} 10. Qd3 {[%clk 0:02:57]}  Ne5 {[%clk 0:02:37]} 11. Qg3 {[%clk 0:02:57]}  Ng6 {[%clk 0:02:34]} 12. Bg5 {[%clk 0:02:51]}  Be7 {[%clk 0:02:33]} 13. O-O-O {[%clk 0:02:42]}  Rc8 {[%clk 0:02:13]} 14. h4 {[%clk 0:01:58]}  h6 {[%clk 0:01:49]} 15. Bd2 {[%clk 0:01:57]}  h5 {[%clk 0:01:43]} 16. Bg5 {[%clk 0:01:55]}  Ne5 {[%clk 0:01:14]} 17. Nd4 {[%clk 0:01:49]}  b5 {[%clk 0:01:02]} 18. Rhf1 {[%clk 0:01:34]}  b4 {[%clk 0:00:57]} 19. Bxf6 {[%clk 0:01:27]}  Bxf6 {[%clk 0:00:54]} 20. Nd5 {[%clk 0:01:27]}  Bxd5 {[%clk 0:00:50]} 21. exd5 {[%clk 0:01:27]}  Bxh4 {[%clk 0:00:20]} 22. Qxg7 {[%clk 0:01:25]}  Qg5+ {[%clk 0:00:20]} 23. Qxg5 {[%clk 0:01:25]}  Bxg5+ {[%clk 0:00:21]} 24. Kb1 {[%clk 0:01:26]}  a5 {[%clk 0:00:20]} 25. Rf5 {[%clk 0:01:12]}  Be3 {[%clk 0:00:18]} 26. Nc6 {[%clk 0:01:07]}  Nxc6 {[%clk 0:00:12]} 27. dxc6 {[%clk 0:01:08]}  Ke7 {[%clk 0:00:12]} 28. Rxa5 {[%clk 0:01:02]}  Rxc6 {[%clk 0:00:10]} 29. Bxh5 {[%clk 0:00:54]}  Rc5 {[%clk 0:00:10]} 30. Ra7+ {[%clk 0:00:51]}  Kf6 {[%clk 0:00:06]} 31. Rxf7+ {[%clk 0:00:51]}  Ke6 {[%clk 0:00:06]} 32. Rf3 {[%clk 0:00:47]}  Re5 {[%clk 0:00:05]} 33. Bg4+ {[%clk 0:00:36]}  Ke7 {[%clk 0:00:06]} 34. Bh3 {[%clk 0:00:37]}  Rf8 {[%clk 0:00:05]} 35. Rxf8 {[%clk 0:00:34]}  Kxf8 {[%clk 0:00:06]} 36. Rxd6 {[%clk 0:00:33]}  Bd4 {[%clk 0:00:06]} 37. Re6 {[%clk 0:00:31]}  Rxe6 {[%clk 0:00:04]} 38. Bxe6 {[%clk 0:00:32]}  Ke7 {[%clk 0:00:05]} 39. Bc4 {[%clk 0:00:30]}  Kd6 {[%clk 0:00:05]} 40. g4 {[%clk 0:00:29]}  Ke5 {[%clk 0:00:05]} 41. Bd3 {[%clk 0:00:29]}  Kf4 {[%clk 0:00:05]} 42. Bf5 {[%clk 0:00:30]}  Ke5 {[%clk 0:00:03]} 43. a4 {[%clk 0:00:21]}  bxa3 {[%clk 0:00:03]} 44. bxa3 {[%clk 0:00:22]}  Kd6 {[%clk 0:00:02]} 45. g5 {[%clk 0:00:22]}  Ke5 {[%clk 0:00:02]} 46. Bd3 {[%clk 0:00:22]}  Kf4 {[%clk 0:00:01]} 47. g6 {[%clk 0:00:22]}  Kg5 {[%clk 0:00:02]} 48. a4 {[%clk 0:00:22]}  Kf6 {[%clk 0:00:02]} 49. a5 {[%clk 0:00:23]}  Bc3 {[%clk 0:00:02]} 50. a6 {[%clk 0:00:23]}  Bd4 {[%clk 0:00:01]} 51. Ka2 {[%clk 0:00:24]} 1-0


[Site "https://www.chess.com"]

[Event "Titled Tuesday Blitz July 18 Early 2023"]
[White "Eugene, Floryan"]
[Black "Zhigalko, Sergei"]
[WhiteFideId "20694784"]
[BlackFideId "13502956"]
[WhiteElo "2694"]
[BlackElo "2879"]
[Result "0-1"]
[Round "6"]
[TimeControl "180+2"]
[Date "2023.07.18"]
[WhiteClock "0:00:29"]
[BlackClock "0:00:06"]
[Board "36"]

1. d4 {[%clk 0:03:00]}  Nf6 {[%clk 0:03:00]} 2. c4 {[%clk 0:03:01]}  e6 {[%clk 0:03:00]} 3. g4 {[%clk 0:03:01]}  Nxg4 {[%clk 0:02:57]} 4. e4 {[%clk 0:02:58]}  Qh4 {[%clk 0:02:42]} 5. Qe2 {[%clk 0:02:56]}  Nf6 {[%clk 0:02:05]} 6. Nc3 {[%clk 0:02:54]}  Bb4 {[%clk 0:02:05]} 7. Bg2 {[%clk 0:02:33]}  Nc6 {[%clk 0:01:59]} 8. Qd3 {[%clk 0:02:24]}  d5 {[%clk 0:01:30]} 9. e5 {[%clk 0:01:29]}  Qxd4 {[%clk 0:01:06]} 10. Qxd4 {[%clk 0:01:29]}  Nxd4 {[%clk 0:01:06]} 11. exf6 {[%clk 0:01:29]}  gxf6 {[%clk 0:00:49]} 12. Kd1 {[%clk 0:01:20]}  Rg8 {[%clk 0:00:41]} 13. Bf1 {[%clk 0:01:12]}  c6 {[%clk 0:00:40]} 14. Be3 {[%clk 0:01:11]}  Nf5 {[%clk 0:00:38]} 15. Nf3 {[%clk 0:01:08]}  Bd7 {[%clk 0:00:26]} 16. Bd3 {[%clk 0:01:05]}  Bxc3 {[%clk 0:00:17]} 17. Bxf5 {[%clk 0:01:00]}  Bxb2 {[%clk 0:00:16]} 18. Rb1 {[%clk 0:01:00]}  Ba3 {[%clk 0:00:15]} 19. Bxh7 {[%clk 0:00:56]}  Rh8 {[%clk 0:00:15]} 20. Bd3 {[%clk 0:00:55]}  b6 {[%clk 0:00:14]} 21. cxd5 {[%clk 0:00:52]}  cxd5 {[%clk 0:00:13]} 22. Ke2 {[%clk 0:00:50]}  Rc8 {[%clk 0:00:12]} 23. Rb3 {[%clk 0:00:43]}  Bd6 {[%clk 0:00:10]} 24. Nd4 {[%clk 0:00:42]}  Rxh2 {[%clk 0:00:08]} 25. Rg1 {[%clk 0:00:39]}  Ke7 {[%clk 0:00:07]} 26. Nb5 {[%clk 0:00:38]}  Bxb5 {[%clk 0:00:07]} 27. Rxb5 {[%clk 0:00:38]}  Rc7 {[%clk 0:00:03]} 28. a4 {[%clk 0:00:38]}  Bc5 {[%clk 0:00:03]} 29. Bf4 {[%clk 0:00:37]}  Rxf2+ {[%clk 0:00:03]} 30. Ke1 {[%clk 0:00:38]}  Rxf4 {[%clk 0:00:04]} 31. Rf1 {[%clk 0:00:37]}  Rxa4 {[%clk 0:00:03]} 32. Rb1 {[%clk 0:00:37]}  f5 {[%clk 0:00:03]} 33. Bc2 {[%clk 0:00:37]}  Rd4 {[%clk 0:00:03]} 34. Bd1 {[%clk 0:00:37]}  Bb4+ {[%clk 0:00:04]} 35. Ke2 {[%clk 0:00:38]}  Rc3 {[%clk 0:00:04]} 36. Rf2 {[%clk 0:00:34]}  Rg3 {[%clk 0:00:04]} 37. Rh2 {[%clk 0:00:33]}  a5 {[%clk 0:00:04]} 38. Kf2 {[%clk 0:00:33]}  Rc3 {[%clk 0:00:04]} 39. Be2 {[%clk 0:00:34]}  Bc5 {[%clk 0:00:04]} 40. Ke1 {[%clk 0:00:34]}  Re4 {[%clk 0:00:04]} 41. Kd2 {[%clk 0:00:34]}  Bb4 {[%clk 0:00:05]} 42. Kd1 {[%clk 0:00:34]}  Rd4+ {[%clk 0:00:05]} 43. Ke1 {[%clk 0:00:29]}  Rb3+ {[%clk 0:00:06]} 0-1


[Site "https://www.chess.com"]